bitfinex-derivatives/quotes_SOLF0:USTF0_20220109
["timestamp","ask_amount","ask_price","bid_price","bid_amount"]
[1641769782992,1.77638757,140.81,140.76,4.0]
[1641769783392,10.08399345,140.86,140.78,4.0]
[1641769783592,10.08399345,140.86,140.78,1.774]
[1641769783793,10.08399345,140.86,140.77,5.774]
[1641769784093,8.514,140.89,140.77,4.0]
[1641769784694,18.58567759,140.89,140.78,8.03316381]
[1641769784894,18.58567759,140.89,140.78,4.03316381]
[1641769785094,4.0,140.83,140.79,4.03316381]
[1641769785293,10.109,140.83,140.79,4.03316381]
[1641769785493,6.109,140.83,140.77,4.03316381]
[1641769785894,6.109,140.83,140.75,4.0]
[1641769786094,6.109,140.83,140.74,4.03316381]
[1641769786394,4.0,140.86,140.76,4.03316381]
[1641769786595,4.0,140.87,140.76,4.03316381]
[1641769786794,4.0,140.83,140.74,4.03316381]
[1641769787195,12.472,140.83,140.74,4.03316381]
[1641769787595,8.472,140.83,140.74,4.03316381]
[1641769788195,8.472,140.83,140.74,8.03316381]
[1641769788397,8.472,140.83,140.75,4.0]
[1641769788596,10.81444603,140.88,140.75,8.03316381]
[1641769788797,4.0,140.87,140.75,4.03316381]
[1641769788997,6.81444603,140.88,140.76,8.03316381]
[1641769789197,7.10050769,140.89,140.79,4.0]
[1641769789397,7.10050769,140.89,140.79,13.198]
[1641769789797,7.10050769,140.89,140.8,4.03316381]
[1641769790398,11.10050769,140.89,140.8,4.03316381]
[1641769792703,7.10050769,140.89,140.8,4.03316381]
[1641769792901,31.66479,140.9,140.8,4.03316381]
[1641769793402,4.0,140.89,140.8,4.03316381]
[1641769793902,43.53985779,140.9,140.8,4.03316381]
[1641769794102,43.53985779,140.9,140.81,4.0]
[1641769794303,43.53985779,140.9,140.8,4.03316381]
[1641769794503,43.53985779,140.9,140.8,8.03316381]
[1641769794704,43.53985779,140.9,140.8,4.03316381]
[1641769794906,43.53985779,140.9,140.81,4.03316381]
[1641769795105,37.34285779,140.9,140.81,4.03316381]
[1641769795305,37.34285779,140.9,140.8,4.03316381]
[1641769795506,9.67819674,140.89,140.8,4.03316381]
[1641769796105,5.67819674,140.89,140.8,4.03316381]
[1641769797106,13.36919674,140.89,140.8,4.03316381]
[1641769797306,7.691,140.89,140.8,4.03316381]
[1641769798608,0.80650313,140.88,140.8,4.03316381]
[1641769799508,5.67903251,140.87,140.8,4.03316381]
[1641769800108,0.80650313,140.86,140.8,4.03316381]
[1641769800309,7.18650313,140.86,140.8,4.03316381]
[1641769800910,0.80650313,140.85,140.8,4.03316381]
[1641769801511,0.80650313,140.86,140.8,4.03316381]
[1641769802312,0.80650313,140.89,140.8,4.03316381]
[1641769803611,0.80650313,140.89,140.8,12.60516381]
[1641769803811,0.80650313,140.89,140.82,4.0]
[1641769804011,0.80650313,140.89,140.8,12.60516381]
[1641769804211,0.80650313,140.89,140.83,4.03316381]
[1641769804411,0.80650313,140.89,140.83,10.43816381]
[1641769804612,0.80650313,140.89,140.83,6.405]
[1641769805413,0.80650313,140.89,140.79,50.14875769]
[1641769805612,4.0,140.88,140.84,4.03218007]
[1641769805814,11.10075978,140.88,140.84,4.03218007]
[1641769806014,0.80650313,140.87,140.78,4.03218007]
[1641769806815,0.80650313,140.88,140.78,4.03218007]
[1641769807017,0.80650313,140.88,140.8,4.0]
[1641769807215,0.80650313,140.88,140.79,4.0]
[1641769807415,0.80650313,140.88,140.79,9.68200238]
[1641769807915,0.80650313,140.88,140.8,4.03218007]
[1641769808616,10.91902208,140.89,140.8,4.03218007]
[1641769809016,0.80650313,140.88,140.8,4.03218007]
[1641769810719,15.87212255,140.88,140.8,4.03218007]
[1641769811122,0.80650313,140.87,140.8,4.03218007]
[1641769811620,0.80650313,140.87,140.81,27.66479]
[1641769812020,0.80650313,140.87,140.82,4.03218007]
[1641769812421,21.55114657,140.87,140.82,4.03218007]
[1641769812620,25.55114657,140.87,140.82,4.03218007]
[1641769813021,0.80650313,140.86,140.78,4.03218007]
[1641769813221,12.58650313,140.86,140.78,4.03218007]
[1641769813424,15.06561942,140.84,140.78,4.03218007]
[1641769813922,0.80650313,140.83,140.76,4.03218007]
[1641769814122,6.52550313,140.83,140.76,4.03218007]
[1641769815022,0.80650313,140.82,140.76,4.03218007]
[1641769815426,0.80650313,140.82,140.75,4.03218007]
[1641769815823,0.80650313,140.82,140.77,4.03218007]
[1641769816223,0.80650313,140.82,140.75,4.03218007]
[1641769816425,16.24128945,140.82,140.75,4.03218007]
[1641769816626,4.0,140.81,140.75,4.03218007]
[1641769816824,9.68185544,140.8,140.75,4.03218007]
[1641769817024,5.68185544,140.8,140.75,4.03218007]
[1641769817224,4.80650313,140.79,140.73,4.03218007]
[1641769817425,8.15950313,140.79,140.73,4.03218007]
[1641769817625,0.80650313,140.78,140.73,4.03218007]
[1641769818625,0.80650313,140.78,140.7,4.03218007]
[1641769824234,6.48915193,140.78,140.7,4.03218007]
[1641769824836,0.80650313,140.77,140.7,8.03218007]
[1641769825137,0.80650313,140.77,140.71,4.0]
[1641769825336,0.80650313,140.79,140.71,16.67518007]
[1641769825636,0.80650313,140.79,140.71,19.15254141]
[1641769825838,0.80650313,140.8,140.72,4.03218007]
[1641769826235,0.80650313,140.82,140.72,4.03218007]
[1641769826436,6.4875543,140.82,140.72,4.03218007]
[1641769826837,6.4875543,140.82,140.72,12.30318007]
[1641769827039,0.80650313,140.81,140.72,12.30318007]
[1641769827537,3.334031,140.81,140.73,4.03218007]
[1641769828140,0.80650313,140.8,140.72,4.03218007]
[1641769828544,0.80650313,140.8,140.72,8.03218007]
[1641769828946,0.80650313,140.8,140.73,4.0]
[1641769829144,0.80650313,140.83,140.74,7.46008364]
[1641769829342,0.80650313,140.83,140.74,55.66328364]
[1641769829743,0.80650313,140.83,140.75,4.03218007]
[1641769830343,0.80650313,140.83,140.75,10.47118007]
[1641769831046,0.80650313,140.83,140.76,4.03218007]
[1641769832047,0.80650313,140.84,140.76,4.03218007]
[1641769832246,2.52835704,140.82,140.76,4.03218007]
[1641769832446,2.52835704,140.82,140.75,8.03218007]
[1641769832649,2.52835704,140.82,140.75,4.03218007]
[1641769832847,0.80650313,140.81,140.76,4.03218007]
[1641769833350,0.80650313,140.81,140.75,4.03218007]
[1641769833850,0.80650313,140.82,140.75,4.03218007]
[1641769834150,0.80650313,140.84,140.75,4.03218007]
[1641769835252,2.52872558,140.83,140.75,4.03218007]
[1641769835855,0.80650313,140.82,140.75,4.03218007]
[1641769837155,4.80650313,140.82,140.75,4.03218007]
[1641769837558,4.0,140.81,140.75,4.03218007]
[1641769837756,4.80650313,140.81,140.75,4.03218007]
[1641769837955,10.48804461,140.81,140.75,4.03218007]
[1641769838156,0.80650313,140.8,140.75,4.03218007]
[1641769838859,2.53170471,140.79,140.75,4.03218007]
[1641769839460,0.80650313,140.78,140.75,4.03218007]
[1641769840658,0.80650313,140.8,140.75,4.03218007]
[1641769841661,2.53714243,140.79,140.75,4.03218007]
[1641769842462,0.80650313,140.78,140.75,4.03218007]
[1641769843262,7.03650313,140.78,140.75,4.03218007]
[1641769843663,0.80650313,140.77,140.75,4.03218007]
[1641769845463,8.708,140.78,140.75,4.03218007]
[1641769845863,0.80650313,140.77,140.75,4.03218007]
[1641769847265,0.80650313,140.8,140.75,4.03218007]
[1641769847866,2.5388737,140.79,140.75,4.03218007]
[1641769848668,0.80650313,140.78,140.75,4.03218007]
[1641769849867,0.80650313,140.79,140.75,4.03218007]
[1641769850068,2.53985932,140.77,140.75,4.03218007]
[1641769850268,2.53985932,140.77,140.69,42.73040942]
[1641769850666,2.53985932,140.77,140.7,4.03520441]
[1641769850667,0.80650313,140.76,140.7,4.03520441]
[1641769851067,0.80650313,140.76,140.7,6.52544334]
[1641769851669,0.80650313,140.76,140.71,4.03520441]
[1641769852073,2.53985932,140.75,140.71,4.03520441]
[1641769852270,4.0,140.74,140.71,4.03520441]
[1641769852470,27.66479,140.72,140.68,4.03520441]
[1641769852669,40.57688656,140.72,140.68,4.03520441]
[1641769853070,0.80650313,140.71,140.68,4.03520441]
[1641769853971,0.80650313,140.71,140.66,4.03520441]
[1641769855271,4.0,140.7,140.66,4.03520441]
[1641769855871,0.80650313,140.69,140.66,4.03520441]
[1641769856873,0.80650313,140.7,140.66,4.03520441]
[1641769857273,4.80650313,140.7,140.65,4.03520441]
[1641769857573,0.80650313,140.7,140.65,4.03520441]
[1641769857772,5.68572429,140.71,140.65,4.03520441]
[1641769857773,0.80650313,140.69,140.65,4.03520441]
[1641769858175,0.80650313,140.7,140.65,4.03520441]
[1641769858578,0.80650313,140.71,140.65,4.03520441]
[1641769860480,0.80650313,140.71,140.65,11.34620441]
[1641769860681,0.80650313,140.71,140.65,18.45100015]
[1641769860880,0.80650313,140.73,140.66,4.03520441]
[1641769861282,0.80650313,140.75,140.66,4.03520441]
[1641769861881,0.80650313,140.75,140.67,2.47936047]
[1641769862486,0.80650313,140.75,140.68,4.03520441]
[1641769866790,0.80650313,140.75,140.68,11.30020441]
[1641769867190,0.80650313,140.75,140.69,4.0]
[1641769867391,0.80650313,140.75,140.69,6.48093549]
[1641769867591,0.80650313,140.75,140.69,55.0685399]
[1641769867991,0.80650313,140.78,140.7,4.03520441]
[1641769868495,0.80650313,140.74,140.7,6.5161399]
[1641769868694,0.80650313,140.74,140.7,34.1809299]
[1641769868895,0.80650313,140.77,140.7,34.1809299]
[1641769869096,0.80650313,140.77,140.7,6.5161399]
[1641769869297,27.66479,140.79,140.71,6.5161399]
[1641769869800,0.80695101,140.76,140.71,6.5161399]
[1641769869998,0.80695101,140.78,140.72,4.03520441]
[1641769870600,0.80695101,140.78,140.7,4.03520441]
[1641769871000,0.80695101,140.78,140.73,4.03520441]
[1641769871402,0.80695101,140.78,140.7,4.03520441]
[1641769873304,0.80695101,140.78,140.71,2.48115319]
[1641769873904,0.80695101,140.78,140.72,4.03520441]
[1641769874806,0.80695101,140.78,140.7,4.03520441]
[1641769875406,17.59566009,140.78,140.7,4.03520441]
[1641769875606,5.68345696,140.76,140.7,4.03520441]
[1641769876006,0.80695101,140.75,140.69,4.03520441]
[1641769878507,0.80695101,140.75,140.7,2.48423152]
[1641769878707,0.80695101,140.78,140.7,2.48423152]
[1641769879107,0.80695101,140.78,140.71,4.03520441]
[1641769879513,0.80695101,140.78,140.71,10.45520441]
[1641769880111,0.80695101,140.78,140.72,4.03520441]
[1641769880710,0.80695101,140.78,140.72,34.18422593]
[1641769881111,0.80695101,140.78,140.72,30.14902152]
[1641769881314,0.80695101,140.78,140.72,2.48423152]
[1641769881513,0.80695101,140.78,140.73,4.03520441]
[1641769882412,0.80695101,140.78,140.7,4.03520441]
[1641769882813,0.80695101,140.78,140.74,4.03520441]
[1641769883215,0.80695101,140.78,140.71,4.03520441]
[1641769883715,0.80695101,140.78,140.75,4.03520441]
[1641769883915,0.80695101,140.78,140.72,4.03520441]
[1641769884516,0.80695101,140.78,140.71,4.03520441]
[1641769884917,0.80695101,140.78,140.73,4.03520441]
[1641769885417,4.80695101,140.78,140.71,4.03520441]
[1641769885716,5.68305696,140.77,140.74,4.03520441]
[1641769886217,0.80695101,140.76,140.69,4.03520441]
[1641769887822,0.80695101,140.76,140.7,2.48622389]
[1641769888428,0.80695101,140.76,140.71,4.03520441]
[1641769888726,0.80695101,140.77,140.71,4.03520441]
[1641769888925,0.80695101,140.77,140.73,27.66479]
[1641769889326,0.80695101,140.78,140.73,27.66479]
[1641769889727,0.80695101,140.76,140.74,4.03520441]
[1641769890131,0.80695101,140.77,140.74,4.03520441]
[1641769890330,3.34655468,140.77,140.74,4.03520441]
[1641769890731,2.53960367,140.77,140.73,4.03520441]
[1641769891029,0.80695101,140.76,140.75,4.03520441]
[1641769891632,0.80695101,140.76,140.73,4.03520441]
[1641769892033,0.80695101,140.76,140.75,2.48954189]
[1641769892233,0.80695101,140.78,140.75,6.5247463]
[1641769893035,6.81712667,140.83,140.76,6.5247463]
[1641769893036,0.80695101,140.81,140.76,6.5247463]
[1641769893837,0.80695101,140.82,140.77,4.03520441]
[1641769894337,0.80695101,140.82,140.74,4.03520441]
[1641769894837,2.53778651,140.81,140.74,4.03520441]
[1641769895538,0.80695101,140.8,140.75,2.48757456]
[1641769896241,0.80695101,140.8,140.76,4.03520441]
[1641769897041,0.80695101,140.82,140.76,4.03520441]
[1641769897541,0.80695101,140.82,140.74,4.03520441]
[1641769897944,2.53690717,140.81,140.77,4.03520441]
[1641769898343,0.80695101,140.8,140.74,4.03520441]
[1641769899346,0.80695101,140.8,140.75,2.48663869]
[1641769900146,0.80695101,140.8,140.76,4.03520441]
[1641769900345,0.80695101,140.82,140.76,4.03520441]
[1641769900745,0.80695101,140.79,140.76,4.03520441]
[1641769901148,21.89903648,140.83,140.76,4.03520441]
[1641769901149,0.80695101,140.81,140.76,4.03520441]
[1641769901548,0.80695101,140.82,140.74,4.03520441]
[1641769902248,0.80695101,140.82,140.75,2.48642928]
[1641769902748,0.80695101,140.82,140.76,4.03520441]
[1641769904150,0.80695101,140.82,140.74,4.03520441]
[1641769904851,0.80695101,140.82,140.75,2.48634661]
[1641769905751,2.53645623,140.81,140.76,4.03520441]
[1641769906151,0.80695101,140.8,140.76,4.03520441]
[1641769907753,0.80695101,140.8,140.74,4.03520441]
[1641769908253,0.80695101,140.81,140.75,2.48812567]
[1641769908656,0.80695101,140.81,140.76,4.03520441]
[1641769909354,0.80695101,140.82,140.76,4.03520441]
[1641769910055,2.5378399,140.81,140.76,4.03520441]
[1641769910858,0.80695101,140.8,140.74,4.03520441]
[1641769911258,0.80695101,140.82,140.74,4.03520441]
[1641769911859,0.80695101,140.82,140.75,2.48765943]
[1641769912358,0.80695101,140.82,140.76,4.03520441]
[1641769912959,0.80695101,140.82,140.76,11.41920441]
[1641769913359,0.80695101,140.82,140.77,2.48765943]
[1641769913563,15.06561942,140.85,140.77,59.46565541]
[1641769913758,15.06561942,140.85,140.78,9.68257355]
[1641769914163,20.74425303,140.88,140.78,5.68257355]
[1641769914564,20.74425303,140.88,140.79,4.0320507]
[1641769914765,0.80641014,140.87,140.79,13.1580507]
[1641769915166,3.34054782,140.87,140.79,15.64571013]
[1641769915366,3.34054782,140.87,140.79,43.31050013]
[1641769915566,0.80641014,140.86,140.8,4.0320507]
[1641769915966,3.34054782,140.86,140.8,6.51971013]
[1641769916568,0.80641014,140.85,140.81,4.0320507]
[1641769917569,0.80641014,140.88,140.81,42.8758]
[1641769917768,0.80641014,140.88,140.81,46.8758]
[1641769917968,0.80641014,140.88,140.82,4.0320507]
[1641769918469,0.80641014,140.89,140.82,4.0320507]
[1641769919368,0.80641014,140.91,140.82,4.0320507]
[1641769920370,4.80641014,140.91,140.82,4.0320507]
[1641769920569,6.52975657,140.9,140.82,4.0320507]
[1641769920770,4.0,140.89,140.82,4.0320507]
[1641769921172,9.67951825,140.86,140.82,4.0320507]
[1641769921372,17.00151825,140.86,140.82,4.0320507]
[1641769921570,17.00151825,140.86,140.79,4.0320507]
[1641769921871,0.80641014,140.85,140.83,4.0320507]
[1641769922271,0.80641014,140.85,140.77,4.0320507]
[1641769922471,7.17341014,140.85,140.77,4.0320507]
[1641769923472,0.80641014,140.84,140.78,2.48108777]
[1641769923872,0.80641014,140.84,140.79,4.0320507]
[1641769924672,0.80641014,140.84,140.77,4.0320507]
[1641769924872,12.7616199,140.84,140.77,4.0320507]
[1641769925674,0.80641014,140.83,140.77,4.0320507]
[1641769926873,4.0,140.8,140.77,4.0320507]
[1641769927075,11.10479574,140.8,140.74,15.06561942]
[1641769927275,16.78685106,140.8,140.74,15.06561942]
[1641769927475,9.68205532,140.8,140.74,15.06561942]
[1641769927677,5.68205532,140.8,140.74,15.06561942]
[1641769927881,5.68205532,140.8,140.73,27.66479]
[1641769928077,9.68205532,140.8,140.73,27.66479]
[1641769928376,36.20479,140.81,140.73,27.66479]
[1641769928577,1.49624228,140.79,140.74,4.03363402]
[1641769928978,1.49624228,140.8,140.74,4.03363402]
[1641769929580,5.68194211,140.8,140.74,4.03363402]
[1641769930179,1.49624228,140.79,140.74,4.03363402]
[1641769932184,4.0,140.8,140.74,4.03363402]
[1641769932384,1.49624228,140.81,140.74,4.03363402]
[1641769932584,1.49624228,140.79,140.74,4.03363402]
[1641769933182,5.68078781,140.83,140.73,4.03363402]
[1641769933183,1.49624228,140.81,140.73,4.03363402]
[1641769933582,9.68078781,140.83,140.73,4.03363402]
[1641769933583,1.49624228,140.82,140.73,4.03363402]
[1641769935188,2.53070099,140.81,140.73,4.03363402]
[1641769935589,1.49624228,140.8,140.74,27.66479]
[1641769935988,1.49624228,140.8,140.74,34.14560664]
[1641769936188,1.49624228,140.83,140.75,4.03363402]
[1641769936389,1.49624228,140.83,140.76,44.6227]
[1641769936589,1.49624228,140.84,140.76,44.6227]
[1641769936792,1.49624228,140.84,140.76,47.10351664]
[1641769937189,1.49624228,140.84,140.77,4.03363402]
[1641769938796,1.49624228,140.84,140.77,8.03363402]
[1641769939095,1.49624228,140.84,140.78,4.0]
[1641769939298,1.49624228,140.84,140.79,4.0]
[1641769939598,1.49624228,140.84,140.8,27.66479]
[1641769939795,1.49624228,140.85,140.8,4.03363402]
[1641769940197,1.49624228,140.85,140.79,4.03363402]
[1641769940399,8.51624228,140.85,140.8,2.48023931]
[1641769941200,1.49624228,140.84,140.81,4.03363402]
[1641769942100,1.49624228,140.84,140.77,4.03363402]
[1641769943101,1.49624228,140.84,140.78,2.48033347]
[1641769943302,1.49624228,140.87,140.78,2.48033347]
[1641769943704,1.49624228,140.88,140.79,4.03363402]
[1641769943902,2.53050437,140.86,140.8,42.8557]
[1641769944803,1.49624228,140.85,140.81,4.03363402]
[1641769945003,1.49624228,140.85,140.81,10.81263402]
[1641769945204,5.49624228,140.86,140.81,10.81263402]
[1641769945404,1.49624228,140.86,140.81,10.81263402]
[1641769945604,1.49624228,140.85,140.82,4.03363402]
[1641769946305,5.67900961,140.87,140.82,4.03363402]
[1641769946708,9.6798077,140.85,140.79,4.03363402]
[1641769946905,7.10277719,140.84,140.79,4.03363402]
[1641769947105,14.25077719,140.84,140.79,4.03363402]
[1641769947307,14.25077719,140.84,140.75,15.06561942]
[1641769947308,27.95838697,140.84,140.76,4.03363402]
[1641769947706,1.49624228,140.83,140.75,4.03363402]
[1641769948307,4.02702276,140.83,140.75,4.03363402]
[1641769948607,1.49624228,140.82,140.75,4.03363402]
[1641769949507,1.49624228,140.82,140.76,2.48224593]
[1641769950108,1.49624228,140.83,140.77,4.03363402]
[1641769951611,1.49624228,140.83,140.78,2.48500216]
[1641769951810,1.49624228,140.83,140.78,30.14979216]
[1641769952212,1.49624228,140.85,140.79,6.51863618]
[1641769952413,1.49624228,140.85,140.79,48.86393618]
[1641769952612,1.49624228,140.85,140.8,4.03363402]
[1641769953111,1.49624228,140.86,140.8,4.03363402]
[1641769953712,1.49624228,140.87,140.8,4.03363402]
[1641769953912,1.49624228,140.87,140.8,11.33663402]
[1641769954312,2.53414842,140.86,140.8,11.33663402]
[1641769954513,2.53414842,140.86,140.81,4.03363402]
[1641769955013,1.49624228,140.85,140.81,4.03363402]
[1641769956014,1.49624228,140.87,140.81,4.03363402]
[1641769956815,7.17528274,140.87,140.81,4.03363402]
[1641769957415,4.03009405,140.86,140.8,4.03363402]
[1641769957816,1.49624228,140.85,140.8,4.03363402]
[1641769959018,4.03009405,140.85,140.8,4.03363402]
[1641769959721,1.49624228,140.84,140.8,4.03363402]
[1641769960222,1.49624228,140.86,140.8,4.03363402]
[1641769960420,16.5618617,140.86,140.8,4.03363402]
[1641769961021,1.49624228,140.85,140.8,4.03363402]
[1641769961223,4.03122716,140.85,140.8,4.03363402]
[1641769961423,12.65422716,140.85,140.8,4.03363402]
[1641769962122,4.03122716,140.84,140.8,4.03363402]
[1641769962725,1.49624228,140.84,140.8,4.03363402]
[1641769962924,1.49624228,140.83,140.8,4.03363402]
[1641769963324,1.49624228,140.84,140.8,4.03363402]
[1641769963726,1.49624228,140.85,140.8,4.03363402]
[1641769965430,2.53725061,140.84,140.8,4.03363402]
[1641769965829,1.49624228,140.83,140.8,4.03363402]
[1641769966030,8.599524,140.83,140.76,15.06561942]
[1641769966330,7.10479574,140.8,140.76,15.06561942]
[1641769967232,7.10479574,140.8,140.74,2.4873004]
[1641769967433,15.06561942,140.82,140.74,2.4873004]
[1641769967632,2.30162459,140.79,140.75,4.03266742]
[1641769967832,2.30162459,140.79,140.75,45.43426742]
[1641769968032,2.30162459,140.79,140.76,27.66479]
[1641769968232,2.30162459,140.81,140.76,27.66479]
[1641769968432,2.30162459,140.81,140.76,31.66479]
[1641769968633,2.30162459,140.8,140.77,4.03266742]
[1641769969033,15.06561942,140.83,140.77,4.03266742]
[1641769969333,13.91747226,140.86,140.77,6.51996782]
[1641769969534,1.89735646,140.82,140.77,6.51996782]
[1641769969935,7.868,140.84,140.78,4.03266742]
[1641769970135,44.62776588,140.85,140.78,6.51996782]
[1641769970335,1.89735646,140.83,140.78,6.51996782]
[1641769970834,1.89735646,140.84,140.79,4.03266742]
[1641769971738,2.5374892,140.83,140.77,4.03266742]
[1641769972139,1.89735646,140.82,140.77,4.03266742]
[1641769972543,1.89735646,140.82,140.78,2.48740616]
[1641769972939,1.89735646,140.82,140.79,4.03266742]
[1641769973139,21.88107116,140.86,140.79,4.03266742]
[1641769973140,1.89735646,140.85,140.79,4.03266742]
[1641769973540,1.89735646,140.81,140.79,4.03266742]
[1641769973939,1.89735646,140.85,140.79,4.03266742]
[1641769974140,1.89735646,140.85,140.8,2.48740616]
[1641769974743,1.89735646,140.85,140.81,4.03266742]
[1641769975046,2.53729504,140.84,140.81,4.03266742]
[1641769975244,8.39029504,140.84,140.81,4.03266742]
[1641769975644,1.89735646,140.83,140.81,4.03266742]
[1641769976847,11.18135646,140.85,140.8,4.03266742]
[1641769977247,1.89735646,140.84,140.8,4.03266742]
[1641769977447,4.4352649,140.84,140.8,4.03266742]
[1641769978147,1.89735646,140.83,140.8,4.03266742]
[1641769978549,1.89735646,140.84,140.8,4.03266742]
[1641769981552,1.89735646,140.84,140.8,10.62766742]
[1641769982152,1.89735646,140.85,140.81,4.03266742]
[1641769982652,1.89735646,140.85,140.81,6.52020929]
[1641769983054,1.89735646,140.88,140.82,4.03266742]
[1641769983454,16.96297588,140.88,140.82,4.03266742]
[1641769983853,22.64189189,140.88,140.82,4.03266742]
[1641769984053,1.89735646,140.87,140.81,4.03266742]
[1641769984253,27.66479,140.86,140.81,4.03266742]
[1641769984452,27.66479,140.86,140.8,43.442]
[1641769984853,1.89735646,140.85,140.81,4.0310425]
[1641769985055,7.94235646,140.85,140.81,4.0310425]
[1641769985253,10.47949679,140.85,140.81,4.0310425]
[1641769985657,1.89735646,140.84,140.81,4.0310425]
[1641769986056,4.43449679,140.84,140.81,4.0310425]
[1641769986455,1.89735646,140.83,140.81,4.0310425]
[1641769987656,1.89735646,140.85,140.81,4.0310425]
[1641769988456,2.53725484,140.84,140.81,4.0310425]
[1641769988756,10.84525484,140.84,140.81,4.0310425]
[1641769988956,4.0,140.82,140.81,4.0310425]
[1641769989356,5.89735646,140.82,140.76,15.06561942]
[1641769989557,9.68192893,140.8,140.76,15.06561942]
[1641769989856,9.68192893,140.8,140.73,15.06561942]
[1641769990258,27.66479,140.77,140.73,15.06561942]
[1641769990459,31.66479,140.77,140.73,15.06561942]
[1641769990659,3.51048367,140.76,140.74,4.0329835]
[1641769991659,3.51048367,140.76,140.72,4.0329835]
[1641769991858,3.51048367,140.76,140.75,4.0329835]
[1641769992060,15.06561942,140.8,140.75,13.5009835]
[1641769992259,15.06561942,140.8,140.75,9.468]
[1641769993160,46.73040942,140.85,140.76,2.48587659]
[1641769993360,2.45669494,140.79,140.76,6.51781173]
[1641769993761,2.45669494,140.84,140.77,4.03193514]
[1641769994260,2.45669494,140.84,140.77,6.51781173]
[1641769994660,2.45669494,140.84,140.78,4.03193514]
[1641769994860,2.53564671,140.83,140.78,4.03193514]
[1641769995460,2.45669494,140.82,140.75,4.03193514]
[1641769995662,2.45669494,140.82,140.75,29.07421157]
[1641769996261,2.45669494,140.84,140.76,4.03193514]
[1641769996761,2.45669494,140.84,140.76,6.51782773]
[1641769997164,2.45669494,140.84,140.77,4.03193514]
[1641769997561,2.53731614,140.83,140.77,6.51782773]
[1641769998062,2.45669494,140.82,140.78,4.03193514]
[1641769998263,2.45669494,140.82,140.78,6.51782773]
[1641769998864,2.45669494,140.82,140.79,4.03193514]
[1641769999565,2.45669494,140.84,140.76,4.03193514]
[1641769999965,2.45669494,140.84,140.76,12.58093514]
[1641770000568,2.53733271,140.83,140.77,6.51935777]
[1641770000966,2.45669494,140.82,140.78,4.03193514]
[1641770001568,2.45669494,140.82,140.78,6.51935777]
[1641770001768,2.45669494,140.84,140.78,6.51935777]
[1641770002368,2.45669494,140.85,140.79,6.51935777]
[1641770002769,2.45669494,140.85,140.8,4.03193514]
[1641770003270,2.45669494,140.85,140.8,6.51935777]
[1641770003669,8.13670699,140.85,140.8,6.51935777]
[1641770003870,2.53700853,140.84,140.77,41.1913]
[1641770004070,2.53700853,140.84,140.76,15.06561942]
[1641770004270,27.66479,140.83,140.76,15.06561942]
[1641770004470,30.12148494,140.83,140.78,4.03210121]
[1641770004871,2.45669494,140.82,140.77,4.03210121]
[1641770005071,11.88469494,140.82,140.77,4.03210121]
[1641770005372,4.0,140.81,140.76,4.03210121]
[1641770005571,9.68173713,140.81,140.76,4.03210121]
[1641770005777,4.0,140.79,140.73,15.06561942]
[1641770005973,9.837,140.79,140.73,15.06561942]
[1641770006173,2.45669494,140.78,140.74,4.03325548]
[1641770006373,27.66479,140.77,140.74,4.03325548]
[1641770006575,4.9943583,140.78,140.74,4.03325548]
[1641770006775,4.9943583,140.78,140.74,12.61825548]
[1641770006974,2.45669494,140.77,140.74,8.585]
[1641770007575,2.45669494,140.77,140.75,4.03325548]
[1641770008277,2.45669494,140.79,140.73,4.03325548]
[1641770008574,2.45669494,140.79,140.74,2.48459434]
[1641770008775,12.13823099,140.81,140.74,2.48459434]
[1641770008975,4.0,140.8,140.74,2.48459434]
[1641770009176,12.13823099,140.81,140.74,2.48459434]
[1641770009475,4.99132017,140.8,140.75,4.03325548]
[1641770009876,2.45669494,140.79,140.71,4.03325548]
[1641770010077,9.13669494,140.79,140.71,4.03325548]
[1641770010377,27.66479,140.78,140.71,4.03325548]
[1641770010780,2.45669494,140.77,140.71,4.03325548]
[1641770010978,2.45669494,140.77,140.72,2.48382484]
[1641770011378,2.45669494,140.77,140.72,6.48382484]
[1641770011579,2.45669494,140.77,140.75,4.0]
[1641770011780,2.45669494,140.8,140.73,5.80925548]
[1641770012180,2.45669494,140.81,140.74,4.03325548]
[1641770012379,2.45669494,140.81,140.74,34.18187032]
[1641770012979,2.45669494,140.81,140.75,4.03325548]
[1641770013179,2.45669494,140.81,140.75,6.51708032]
[1641770013881,2.45669494,140.81,140.76,4.03325548]
[1641770014080,5.68185717,140.8,140.76,4.03325548]
[1641770014280,27.66479,140.77,140.74,4.03325548]
[1641770014480,33.71179,140.77,140.74,4.03325548]
[1641770014880,2.45669494,140.76,140.72,4.03325548]
[1641770015380,2.45669494,140.76,140.7,4.03325548]
[1641770015780,2.45669494,140.76,140.73,4.03325548]
[1641770016180,2.45669494,140.76,140.7,4.03325548]
[1641770018982,2.45669494,140.76,140.71,2.48412685]
[1641770019584,2.45669494,140.76,140.72,4.03325548]
[1641770020885,2.45669494,140.76,140.7,4.03325548]
[1641770022888,4.0,140.75,140.7,4.03325548]
[1641770023188,4.0,140.74,140.7,4.03325548]